Body Name,Body,Service Level,Expense Type,Expense Code,Narrative,Date,Transaction Number,Amount,Capital and Revenue,Supplier Name,Supplier ID
South Ribble Council,http://statistics.data.gov.uk/doc/local-authority/30UN,Housing,Cap Grant- Improve Grants,C570,DFG work at ADDRESS REDACTED - Agreed to pay 50% Cost 1250.00,12/04/2017,0000431365,"1,250.00",Revenue,ABBI PROPERTY SERVICES LTD,131357
South Ribble Council,http://statistics.data.gov.uk/doc/local-authority/30UN,Regeneration,Other Misc,4851,3000 Silicone Wristbands,05/04/2017,0000431212,"1,895.00",Revenue,AINSWORTH & PARKINSON,130107
South Ribble Council,http://statistics.data.gov.uk/doc/local-authority/30UN,Regeneration,Other Misc,4851,Order for Penwortham and Longton Live Publicity Material :Flyers Artwork & Proof 90,19/04/2017,0000431406,711.00,Revenue,AINSWORTH & PARKINSON,130107
South Ribble Council,http://statistics.data.gov.uk/doc/local-authority/30UN,Revenues Plus,Financial,4811,post office trans,07/04/2017,0000431202,770.73,Revenue,ALLPAY LTD,00122276
South Ribble Council,http://statistics.data.gov.uk/doc/local-authority/30UN,Revenues Plus,Financial,4811,paypoint trans,07/04/2017,0000431202,128.69,Revenue,ALLPAY LTD,00122276
South Ribble Council,http://statistics.data.gov.uk/doc/local-authority/30UN,Revenues Plus,Financial,4811,webconnect,07/04/2017,0000431202,46.05,Revenue,ALLPAY LTD,00122276
South Ribble Council,http://statistics.data.gov.uk/doc/local-authority/30UN,Housing,Cap Grant- Improve Grants,C570,DFG Works at ADDRESS REDACTED as per your quote,05/04/2017,0000431188,"15,797.00",Revenue,ASH BARN CONSTRUCTION LTD,00081278
South Ribble Council,http://statistics.data.gov.uk/doc/local-authority/30UN,Area 2 - Waste Transport/Eastern & Central Teams,Materials General,4040,1 HEAD - HTR27A2 - JFC8370 - BO,12/04/2017,0000431368,258.33,Revenue,BALMERS GM LTD,00016023
South Ribble Council,http://statistics.data.gov.uk/doc/local-authority/30UN,Information Services,Stationery,413A,C6656AE-E HP 56 inkjet cartridge,19/04/2017,0000431381,57.42,Revenue,BANNER GROUP LTD,00081485
South Ribble Council,http://statistics.data.gov.uk/doc/local-authority/30UN,Information Services,Stationery,4136,1396116  Rexel twin wallets pk 25,19/04/2017,0000431381,135.25,Revenue,BANNER GROUP LTD,00081485
South Ribble Council,http://statistics.data.gov.uk/doc/local-authority/30UN,Information Services,Stationery,4137,9002506  DL white window envelopes,19/04/2017,0000431381,26.35,Revenue,BANNER GROUP LTD,00081485
South Ribble Council,http://statistics.data.gov.uk/doc/local-authority/30UN,Information Services,Stationery,4136,1263968  Spiral notebooks pk 12,19/04/2017,0000431381,29.32,Revenue,BANNER GROUP LTD,00081485
South Ribble Council,http://statistics.data.gov.uk/doc/local-authority/30UN,Information Services,Stationery,4136,9340014 Rubber bands no.24,19/04/2017,0000431381,3.18,Revenue,BANNER GROUP LTD,00081485
South Ribble Council,http://statistics.data.gov.uk/doc/local-authority/30UN,Information Services,Stationery,4136,91000015 Hardback books,19/04/2017,0000431381,2.20,Revenue,BANNER GROUP LTD,00081485
South Ribble Council,http://statistics.data.gov.uk/doc/local-authority/30UN,Information Services,Stationery,4136,8225465  Blue pens pk 20,19/04/2017,0000431381,4.45,Revenue,BANNER GROUP LTD,00081485
South Ribble Council,http://statistics.data.gov.uk/doc/local-authority/30UN,Information Services,Stationery,4136,9405022  LA files F/scap,19/04/2017,0000431381,9.00,Revenue,BANNER GROUP LTD,00081485
South Ribble Council,http://statistics.data.gov.uk/doc/local-authority/30UN,Information Services,Stationery,4136,0080322  page markers sticky notes,19/04/2017,0000431381,5.40,Revenue,BANNER GROUP LTD,00081485
South Ribble Council,http://statistics.data.gov.uk/doc/local-authority/30UN,Information Services,Stationery,4136,9095004  banner sticky notes 76 x 76 pk 12,19/04/2017,0000431381,98.90,Revenue,BANNER GROUP LTD,00081485
South Ribble Council,http://statistics.data.gov.uk/doc/local-authority/30UN,Information Services,Stationery,4136,1252924  Cotton twine pk 6,19/04/2017,0000431381,3.84,Revenue,BANNER GROUP LTD,00081485
South Ribble Council,http://statistics.data.gov.uk/doc/local-authority/30UN,Information Services,Stationery,4136,32787107  ruler 12 ``,19/04/2017,0000431381,0.50,Revenue,BANNER GROUP LTD,00081485
South Ribble Council,http://statistics.data.gov.uk/doc/local-authority/30UN,Information Services,Stationery,4136,93300007  2 hole punch,19/04/2017,0000431381,1.08,Revenue,BANNER GROUP LTD,00081485
South Ribble Council,http://statistics.data.gov.uk/doc/local-authority/30UN,Planning,Professional Fees,4510,Central Lancashire Study,19/04/2017,0000431384,"5,962.50",Revenue,BE LTD,130661
South Ribble Council,http://statistics.data.gov.uk/doc/local-authority/30UN,Planning,Professional Fees,4510,Joint employment land study. Chorley Borough Council 20% of final fee 13837.50,28/04/2017,0000431493,"2,767.50",Revenue,BE LTD,130661
South Ribble Council,http://statistics.data.gov.uk/doc/local-authority/30UN,Property Services,Rep & Maint Premises,2020,Carr Street Community Centre - Main External Entrance To attend and install external,28/04/2017,0000431471,300.95,Revenue,BELEC ELECTRICAL LTD,130290
South Ribble Council,http://statistics.data.gov.uk/doc/local-authority/30UN,Property Services,Rep & Maint Premises,2020,kingsfold care plan,28/04/2017,0000431547,615.40,Revenue,BRITISH GAS SERVICES (COMMERCIAL) LTD,00016214
South Ribble Council,http://statistics.data.gov.uk/doc/local-authority/30UN,Property Services,Operational Furniture & Equip,4013,cre plan catering,28/04/2017,0000431551,616.48,Revenue,BRITISH GAS SERVICES (COMMERCIAL) LTD,00016214
South Ribble Council,http://statistics.data.gov.uk/doc/local-authority/30UN,Property Services,Rep & Maint Premises,2020,"Annual contract 2016 / 2017 for care plan 3 at The Museum, Church Road, Leyland",28/04/2017,0000431552,307.56,Revenue,BRITISH GAS SERVICES (COMMERCIAL) LTD,00016214
South Ribble Council,http://statistics.data.gov.uk/doc/local-authority/30UN,Regeneration,Capital Expenditure,C234,Bamber Bridge street furniture,19/04/2017,0000431292,410.00,Revenue,BROXAP LTD,00028736
South Ribble Council,http://statistics.data.gov.uk/doc/local-authority/30UN,Area 3 - Parks/Leyland East West,Grounds Maint Cntrctrs Chgs,4657,30 x 25kg BAGS NHL 3.5 LIME,28/04/2017,0000431604,382.20,Revenue,C & W BERRY LTD,00015231
South Ribble Council,http://statistics.data.gov.uk/doc/local-authority/30UN,Area 3 - Parks/Leyland East West,Grounds Maint Cntrctrs Chgs,4657,60 x 25kg BAGS SHARP SAND DELIVERY TO 4 FARMYARD COTTAGES WORDEN,28/04/2017,0000431604,105.60,Revenue,C & W BERRY LTD,00015231
South Ribble Council,http://statistics.data.gov.uk/doc/local-authority/30UN,Information Services,Peripherals,4248,Development Fund for period 01/04/17 - 31/03/18,12/04/2017,0000431340,"9,193.00",Revenue,CAPITA BUSINESS SERVICES LTD,00122179
South Ribble Council,http://statistics.data.gov.uk/doc/local-authority/30UN,Information Services,Peripherals,4248,"Revenues & Benefits Maintenance Schedule, as per quote, period 01/04/17 - 31/03/18",12/04/2017,0000431341,"40,097.80",Revenue,CAPITA BUSINESS SERVICES LTD,00122179
South Ribble Council,http://statistics.data.gov.uk/doc/local-authority/30UN,Revenues Plus,Professional Fees,4520,Business Rates Software Changes - 2016/17,19/04/2017,0000431374,975.00,Revenue,CAPITA BUSINESS SERVICES LTD,00122179
South Ribble Council,http://statistics.data.gov.uk/doc/local-authority/30UN,Revenues Plus,Professional Fees,4520,Benefit Legislation Changes,19/04/2017,0000431399,"1,250.00",Revenue,CAPITA BUSINESS SERVICES LTD,00122179
South Ribble Council,http://statistics.data.gov.uk/doc/local-authority/30UN,Information Services,Peripherals,4248,"Remote Access Maintenance renewal for period 01/04/17 - 31/03/18, as per quote",19/04/2017,0000431413,"2,125.84",Revenue,CAPITA BUSINESS SERVICES LTD,00122179
South Ribble Council,http://statistics.data.gov.uk/doc/local-authority/30UN,Revenues Plus,Professional Fees,4520,Capita Subsidy Seminar - NAMES REDACTED,26/04/2017,0000431527,655.00,Revenue,CAPITA BUSINESS SERVICES LTD,00122179
South Ribble Council,http://statistics.data.gov.uk/doc/local-authority/30UN,HR & Communications,Recruitment Expenses,1500,RECRUIMENT FOR THE CEO,12/04/2017,0000431337,"6,652.00",Revenue,CAPITA RESOURCING LTD,00019127
South Ribble Council,http://statistics.data.gov.uk/doc/local-authority/30UN,HR & Communications,Agency Fees,1121,WORK CARRIED OUT BY NAME REDACTED UP UNTIL 31ST MARCH 2017,12/04/2017,0000431311,"3,957.10",Revenue,NAME REDACTED,132223
South Ribble Council,http://statistics.data.gov.uk/doc/local-authority/30UN,Environmental Health,Licence Fees,488B,mgmt fee,19/04/2017,0000431233,"1,125.00",Revenue,Carr Street Community Centre,130312
South Ribble Council,http://statistics.data.gov.uk/doc/local-authority/30UN,Area 3 - Parks/Leyland East West,Grounds Maint Cntrctrs Chgs,4657,3No.NON-SELF CLOSING WOODSTOCK LARGE MOBILITY GATES XX F010 0215 26,19/04/2017,0000431382,"1,071.00",Revenue,CENTREWIRE,131861
South Ribble Council,http://statistics.data.gov.uk/doc/local-authority/30UN,Shared Financial Services,External Contractors Charges,4570,Provision of Shared Financial Services for 2016/17,05/04/2017,0000431143,"26,859.54",Revenue,CHORLEY BOROUGH COUNCIL,00017352
South Ribble Council,http://statistics.data.gov.uk/doc/local-authority/30UN,Revenues Plus,Agency Fees,1121,Recharge for NAME REDACTED in Benefits 2016/17,21/04/2017,0000431424,"19,885.25",Revenue,CHORLEY BOROUGH COUNCIL,00017352
South Ribble Council,http://statistics.data.gov.uk/doc/local-authority/30UN,Regeneration,Advertising,4842,Purchase of promotional materials for Penwortham and Longton Live 2017,12/04/2017,0000431258,281.49,Revenue,CHORLEY BOTTLE GAS LIMITED,00115173
South Ribble Council,http://statistics.data.gov.uk/doc/local-authority/30UN,Area 2 - Waste Transport/Eastern & Central Teams,External Contractors Charges,4570,Spec repair - PJ62UCL - JFC8459 - PD,19/04/2017,0000431402,354.44,Revenue,CICELEY COMMERCIALS LTD,00059381
South Ribble Council,http://statistics.data.gov.uk/doc/local-authority/30UN,Information Services,Capital Expenditure,C234,"Build, test and deploy the application on Windows 2012 servers Upgrade the application",05/04/2017,0000431150,"11,230.00",Revenue,CIVICA UK LTD,00102717
South Ribble Council,http://statistics.data.gov.uk/doc/local-authority/30UN,HR & Communications,Training Expense-Course Fees,1406,"ROOM HIRE & TEA, COFFE & LUNCH 3RD FEBRUARY 2017",12/04/2017,0000431355,436.13,Revenue,CLASSIC LODGES,132236
South Ribble Council,http://statistics.data.gov.uk/doc/local-authority/30UN,Revenues Plus,Postage,4291,Annual Billing Postage 2017,19/04/2017,0000431375,"13,574.97",Revenue,CRITIQOM,131053
South Ribble Council,http://statistics.data.gov.uk/doc/local-authority/30UN,Revenues Plus,Stationery,4130,Annual Billing 2017,19/04/2017,0000431376,"2,683.36",Revenue,CRITIQOM,131053
South Ribble Council,http://statistics.data.gov.uk/doc/local-authority/30UN,Revenues Plus,Postage,4291,Postage,19/04/2017,0000431422,447.93,Revenue,CRITIQOM,131053
South Ribble Council,http://statistics.data.gov.uk/doc/local-authority/30UN,Revenues Plus,Stationery,4130,Annual Billing Leaflets,21/04/2017,0000431474,"2,340.16",Revenue,CRITIQOM,131053
South Ribble Council,http://statistics.data.gov.uk/doc/local-authority/30UN,HR & Communications,Balance Sheet,0030,FULL BIKE PACKAGE FOR NAME REDACTED,12/04/2017,0000431362,624.97,Revenue,CYCLESCHEME CO  UK,130237
South Ribble Council,http://statistics.data.gov.uk/doc/local-authority/30UN,HR & Communications,Balance Sheet,0030,helmets,12/04/2017,0000431362,24.99,Revenue,CYCLESCHEME CO  UK,130237
South Ribble Council,http://statistics.data.gov.uk/doc/local-authority/30UN,Area 2 - Waste Transport/Eastern & Central Teams,Materials General,4040,PLATFORM - JFC8300 - MH04GSZ - PD,21/04/2017,0000431438,"1,287.39",Revenue,DEL EQUIPMENT (UK) LTD,00109820
South Ribble Council,http://statistics.data.gov.uk/doc/local-authority/30UN,HR & Communications,Professional Fees,4522,DISCLOSURE & BARRING APPLICATIONS,28/04/2017,0000431614,528.00,Revenue,DISCLOSURE & BARRING SERVICE (CRB),00061984
South Ribble Council,http://statistics.data.gov.uk/doc/local-authority/30UN,Scrutiny,Subs to Statutory Bodies,4720,Annual Subs - 2016/17,07/04/2017,0000431294,330.00,Revenue,District Councils` Network,132234
South Ribble Council,http://statistics.data.gov.uk/doc/local-authority/30UN,Scrutiny,Subs to Statutory Bodies,4720,Annual Subscription 2017/18,26/04/2017,0000431528,410.00,Revenue,District Councils` Network,132234
South Ribble Council,http://statistics.data.gov.uk/doc/local-authority/30UN,Information Services,Peripherals,4248,Data Publisher 10 additional slots valid for 3 years plus renewal of the existing 10 slots,19/04/2017,0000431441,"1,350.00",Revenue,Dotted Eyes Ltd,131106
South Ribble Council,http://statistics.data.gov.uk/doc/local-authority/30UN,Information Services,Peripherals,4260,Peripherals,07/04/2017,0000431273,"2,251.25",Revenue,EE Ltd,131653
South Ribble Council,http://statistics.data.gov.uk/doc/local-authority/30UN,Democratic Services,Other Misc,4424,Hire of 85 Polytop tables for the count after the Parliamentary Election on 8 June 2017,28/04/2017,0000431642,630.50,Revenue,ev-ent Hire,131954
South Ribble Council,http://statistics.data.gov.uk/doc/local-authority/30UN,Information Services,Peripherals,4248,Experian Bank Wizard renewal for Contract No. BW1070b / BW1069a.  Licence Key ,19/04/2017,0000431412,"3,804.56",Revenue,EXPERIAN LTD,00094045
South Ribble Council,http://statistics.data.gov.uk/doc/local-authority/30UN,Area 2 - Waste Transport/Eastern & Central Teams,Materials General,4040,12 SOLE PLATES BIN1265,19/04/2017,0000431367,270.50,Revenue,F R SHARROCK LTD,00034539
South Ribble Council,http://statistics.data.gov.uk/doc/local-authority/30UN,Area 2 - Waste Transport/Eastern & Central Teams,Materials General,4040,"1 CYLINDER, 2 BEARINGS - PO16HMZ - JFC8586 - BO",28/04/2017,0000431623,250.61,Revenue,F R SHARROCK LTD,00034539
South Ribble Council,http://statistics.data.gov.uk/doc/local-authority/30UN,Area 2 - Waste Transport/Eastern & Central Teams,Materials General,4040,"1 CYLINDER, 6 BEARINGS - PO16HNA - JFC8587 - BO",28/04/2017,0000431623,250.61,Revenue,F R SHARROCK LTD,00034539
South Ribble Council,http://statistics.data.gov.uk/doc/local-authority/30UN,Area 2 - Waste Transport/Eastern & Central Teams,Materials General,4040,"1 CYLINDER, 6 BEARINGS - PO16HMV - JFC8585 - BO",28/04/2017,0000431623,250.62,Revenue,F R SHARROCK LTD,00034539
South Ribble Council,http://statistics.data.gov.uk/doc/local-authority/30UN,Area 2 - Waste Transport/Eastern & Central Teams,External Contractors Charges,4570,ADDITIONAL CLINICAL WASTE COLLECTIONS MARCH 2017,12/04/2017,0000431288,416.67,Revenue,FCC Environment Services (UK) Ltd,131612
South Ribble Council,http://statistics.data.gov.uk/doc/local-authority/30UN,Area 2 - Waste Transport/Eastern & Central Teams,Balance Sheet,0030,retention,12/04/2017,0000431288,-21.93,Revenue,FCC Environment Services (UK) Ltd,131612
South Ribble Council,http://statistics.data.gov.uk/doc/local-authority/30UN,Area 2 - Waste Transport/Eastern & Central Teams,External Contractors Charges,4570,RESIDUAL WASTE MARCH 2017,12/04/2017,0000431324,"41,017.97",Revenue,FCC Environment Services (UK) Ltd,131612
South Ribble Council,http://statistics.data.gov.uk/doc/local-authority/30UN,Area 2 - Waste Transport/Eastern & Central Teams,External Contractors Charges,4570,DRY RECYCLABLE NON-TERRACED MARCH 2017,12/04/2017,0000431324,"42,003.41",Revenue,FCC Environment Services (UK) Ltd,131612
South Ribble Council,http://statistics.data.gov.uk/doc/local-authority/30UN,Area 2 - Waste Transport/Eastern & Central Teams,External Contractors Charges,4570,DRY RECYLABLE TERRACED MARCH 2017,12/04/2017,0000431324,"1,995.32",Revenue,FCC Environment Services (UK) Ltd,131612
South Ribble Council,http://statistics.data.gov.uk/doc/local-authority/30UN,Area 2 - Waste Transport/Eastern & Central Teams,External Contractors Charges,4570,ORGANIC WASTE NON-TERRACED MARCH 2017,12/04/2017,0000431324,"29,109.43",Revenue,FCC Environment Services (UK) Ltd,131612
South Ribble Council,http://statistics.data.gov.uk/doc/local-authority/30UN,Area 2 - Waste Transport/Eastern & Central Teams,External Contractors Charges,4570,SCHEDULE 2 PROPERTIES MARCH 2017,12/04/2017,0000431324,"1,666.50",Revenue,FCC Environment Services (UK) Ltd,131612
South Ribble Council,http://statistics.data.gov.uk/doc/local-authority/30UN,Area 2 - Waste Transport/Eastern & Central Teams,External Contractors Charges,4570,COMMERCIAL WASTE MARCH 2017,12/04/2017,0000431324,"6,522.89",Revenue,FCC Environment Services (UK) Ltd,131612
South Ribble Council,http://statistics.data.gov.uk/doc/local-authority/30UN,Area 2 - Waste Transport/Eastern & Central Teams,External Contractors Charges,4570,BULKY WASTE MARCH 2017,12/04/2017,0000431324,902.24,Revenue,FCC Environment Services (UK) Ltd,131612
South Ribble Council,http://statistics.data.gov.uk/doc/local-authority/30UN,Area 2 - Waste Transport/Eastern & Central Teams,External Contractors Charges,4570,WEEE COLLECTIONS MARCH 2017,12/04/2017,0000431324,337.57,Revenue,FCC Environment Services (UK) Ltd,131612
South Ribble Council,http://statistics.data.gov.uk/doc/local-authority/30UN,Area 2 - Waste Transport/Eastern & Central Teams,External Contractors Charges,4570,CLINICAL WASTE COLLECTIONS MARCH 2017,12/04/2017,0000431324,574.92,Revenue,FCC Environment Services (UK) Ltd,131612
South Ribble Council,http://statistics.data.gov.uk/doc/local-authority/30UN,Area 2 - Waste Transport/Eastern & Central Teams,External Contractors Charges,4570,ADDITIONAL PROPERTIES MARCH 2017,12/04/2017,0000431324,717.33,Revenue,FCC Environment Services (UK) Ltd,131612
South Ribble Council,http://statistics.data.gov.uk/doc/local-authority/30UN,Area 2 - Waste Transport/Eastern & Central Teams,External Contractors Charges,4570,REPLACEMENT BINS MARCH 2017,12/04/2017,0000431324,"5,000.00",Revenue,FCC Environment Services (UK) Ltd,131612
South Ribble Council,http://statistics.data.gov.uk/doc/local-authority/30UN,Area 2 - Waste Transport/Eastern & Central Teams,Balance Sheet,0030,retention refuse,12/04/2017,0000431324,"-2,586.97",Revenue,FCC Environment Services (UK) Ltd,131612
South Ribble Council,http://statistics.data.gov.uk/doc/local-authority/30UN,Area 2 - Waste Transport/Eastern & Central Teams,Balance Sheet,0030,retention collection,12/04/2017,0000431324,"-3,655.41",Revenue,FCC Environment Services (UK) Ltd,131612
South Ribble Council,http://statistics.data.gov.uk/doc/local-authority/30UN,Neighbourhood Admin & Support,Materials General,4040,FOOTBALL PITCH LINE MARKER PAINT - PITCHMARKER Q2,26/04/2017,0000431470,696.00,Revenue,Fleet Line Markers Limited,131942
South Ribble Council,http://statistics.data.gov.uk/doc/local-authority/30UN,Housing,Cap Grant- Improve Grants,C570,DFG works at ADDRESS REDACTED quote of 2501.55. The grant is 50% of quote.,26/04/2017,0000431594,"1,250.78",Revenue,FORVIVA GROUP WORKS T/A FOR WORKS,132105
South Ribble Council,http://statistics.data.gov.uk/doc/local-authority/30UN,Area 2 - Waste Transport/Eastern & Central Teams,Materials General,4040,1 x Carbarette - 1 x stop solenoid - PMR19A2 - JFC7787,19/04/2017,0000430659,347.49,Revenue,GIBSONS GARDEN MACHINERY LTD,00059051
South Ribble Council,http://statistics.data.gov.uk/doc/local-authority/30UN,Area 2 - Waste Transport/Eastern & Central Teams,External Contractors Charges,4570,WINTER SERVICE - PO11BNB -JFC7748 - PD,21/04/2017,0000431147,"3,313.15",Revenue,GIBSONS GARDEN MACHINERY LTD,00059051
South Ribble Council,http://statistics.data.gov.uk/doc/local-authority/30UN,Area 2 - Waste Transport/Eastern & Central Teams,External Contractors Charges,4570,SPEC REPAIR - PO12FOJ - JFC8359,19/04/2017,0000431159,992.97,Revenue,GIBSONS GARDEN MACHINERY LTD,00059051
South Ribble Council,http://statistics.data.gov.uk/doc/local-authority/30UN,Housing,Contributions,4730,Gas appliance repairs for winter warmth scheme,12/04/2017,0000431338,"2,641.69",Revenue,GOS Heating Ltd,131387
South Ribble Council,http://statistics.data.gov.uk/doc/local-authority/30UN,Housing,Contributions,4730,Gas servicing for winter warmth scheme,12/04/2017,0000431339,375.00,Revenue,GOS Heating Ltd,131387
South Ribble Council,http://statistics.data.gov.uk/doc/local-authority/30UN,Area 2 - Waste Transport/Eastern & Central Teams,Materials General,4040,FILTERS FOR STORES,19/04/2017,0000431373,444.98,Revenue,H & J SERVICES LTD,00114446
South Ribble Council,http://statistics.data.gov.uk/doc/local-authority/30UN,Housing,Cap Grant- Improve Grants,C570,DFG works to property as per quote at ADDRESS REDACTED Cost of Work,28/04/2017,0000431639,"17,997.12",Revenue,Hall Building Contractors Ltd,131423
South Ribble Council,http://statistics.data.gov.uk/doc/local-authority/30UN,Neighbourhood Admin & Support,Vehicle Running Costs,3132,"17,000 LITRES DIESEL (@0.9342P PER LITRE)",05/04/2017,0000431138,"15,821.18",Revenue,Hall Fuels trading name of WFL (UK) Ltd,00116758
South Ribble Council,http://statistics.data.gov.uk/doc/local-authority/30UN,Neighbourhood Admin & Support,Vehicle Running Costs,3134,"2,500 LITRES GAS OIL (@48.99 pence per litre)",28/04/2017,0000431649,"1,246.25",Revenue,Hall Fuels trading name of WFL (UK) Ltd,00116758
South Ribble Council,http://statistics.data.gov.uk/doc/local-authority/30UN,Neighbourhood Admin & Support,Vehicle Running Costs,3132,"17,000 LITRES DIESEL (@94.70 pence per litre)",28/04/2017,0000431663,"16,259.76",Revenue,Hall Fuels trading name of WFL (UK) Ltd,00116758
South Ribble Council,http://statistics.data.gov.uk/doc/local-authority/30UN,Area 2 - Waste Transport/Eastern & Central Teams,External Contractors Charges,4570,SPEC REPAIR - JFC8495 - PWR02A1 - PD,28/04/2017,0000431579,621.10,Revenue,HANSON CLEANING EQUIPMENT LIMITED,00121293
South Ribble Council,http://statistics.data.gov.uk/doc/local-authority/30UN,Area 2 - Waste Transport/Eastern & Central Teams,External Contractors Charges,4570,SPEC REPAIR - JFC8496 - PWR04A2 - PD,28/04/2017,0000431579,434.48,Revenue,HANSON CLEANING EQUIPMENT LIMITED,00121293
South Ribble Council,http://statistics.data.gov.uk/doc/local-authority/30UN,Area 2 - Waste Transport/Eastern & Central Teams,External Contractors Charges,4570,SPEC REPAIR - PWR01A1 - JFC8369  - BO,28/04/2017,0000431581,288.51,Revenue,HANSON CLEANING EQUIPMENT LIMITED,00121293
South Ribble Council,http://statistics.data.gov.uk/doc/local-authority/30UN,Information Services,Publications,4142,Annual subscription to MJ Magazine  - 2 copies 2017/18,19/04/2017,0000431387,280.00,Revenue,HEMMING GROUP LTD,00023867
South Ribble Council,http://statistics.data.gov.uk/doc/local-authority/30UN,Environmental Health,Licence Fees,488B,mgmt fee,19/04/2017,0000431234,"1,000.00",Revenue,HIGHER WALTON COMMUNITY CENTRE,00070535
South Ribble Council,http://statistics.data.gov.uk/doc/local-authority/30UN,Area 3 - Parks/Leyland East West,Grounds Maint Cntrctrs Chgs,4657,"Enhanced Listing Service, Worden Park Formal Gardens Conservatory",19/04/2017,0000431372,901.00,Revenue,Historic England,132174
South Ribble Council,http://statistics.data.gov.uk/doc/local-authority/30UN,Area 1 - Penwortham Western Parishes,Grounds Maintanance,2040,Repair to height barrier at Withy Grove Car Park,21/04/2017,0000431400,442.68,Revenue,Holdens CVE Limited,132119
South Ribble Council,http://statistics.data.gov.uk/doc/local-authority/30UN,HR & Communications,Training Expense-Course Fees,1402,SOCIAL MEDIA TRAINING COURSE NAME REDACTED 5TH APRIL 17 MANCHESTER,12/04/2017,0000431346,265.00,Revenue,ICeDESIGN & MARKETING LTD (TRADING AS MTRAINING),132227
South Ribble Council,http://statistics.data.gov.uk/doc/local-authority/30UN,Property Services,Operational Furniture & Equip,4012,2017 / 2018 annual contract for the nappy disposal unit at Leyland Market,07/04/2017,0000431287,395.36,Revenue,INITIAL WASHROOM SOLUTIONS,00024811
South Ribble Council,http://statistics.data.gov.uk/doc/local-authority/30UN,Property Services,Cleaning and Domestic Supplies,2710,2017 / 2018 annual contract for the floor mats at Leyland Market,07/04/2017,0000431287,909.37,Revenue,INITIAL WASHROOM SOLUTIONS,00024811
South Ribble Council,http://statistics.data.gov.uk/doc/local-authority/30UN,Property Services,Operational Furniture & Equip,4012,waste transfer charge,07/04/2017,0000431287,39.00,Revenue,INITIAL WASHROOM SOLUTIONS,00024811
South Ribble Council,http://statistics.data.gov.uk/doc/local-authority/30UN,Information Services,Peripherals,4243,Enterprise Agreement renewal for period 01/04/17 - 31/03/18,07/04/2017,0000431187,"43,989.38",Revenue,INSIGHT UK,00120744
South Ribble Council,http://statistics.data.gov.uk/doc/local-authority/30UN,Neighbourhood Admin & Support,Materials General,4040,QC10 - QUICK SET CONCRETE,28/04/2017,0000431645,"1,228.64",Revenue,INSTARMAC GROUP PLC,00024905
South Ribble Council,http://statistics.data.gov.uk/doc/local-authority/30UN,Housing,Cap Grant- Improve Grants,C570,Improve Grant,28/04/2017,0000431595,"10,000.00",Revenue,J & D PRESCOTT BUILDERS,131919
South Ribble Council,http://statistics.data.gov.uk/doc/local-authority/30UN,Property Services,Rep & Maint Premises,2020,Annual Contract 2016 - 2017 the maintenance of the Trend BMS HVAC 4 x day visits,05/04/2017,0000431139,390.00,Revenue,JBC CONTROL SYSTEM,130816
South Ribble Council,http://statistics.data.gov.uk/doc/local-authority/30UN,Planning,Professional Fees,4510,Assessment of all planning application documents related scheme design in context,05/04/2017,0000431201,"1,670.90",Revenue,Jerry Spencer Associates Ltd,132043
South Ribble Council,http://statistics.data.gov.uk/doc/local-authority/30UN,HR & Communications,Agency Fees,1121,WORK CARRIED OUT BY NAME REDACTED UP UNTIL 31ST MARCH 2017,12/04/2017,0000431303,"13,611.90",Revenue,Joanne Platt Associates Ltd,132222
South Ribble Council,http://statistics.data.gov.uk/doc/local-authority/30UN,Planning,Advertising,4841,Press notices for planning applications 2017/18,12/04/2017,0000431313,567.00,Revenue,JOHNSTON PUBLISHING (NORTH WEST),00011345
South Ribble Council,http://statistics.data.gov.uk/doc/local-authority/30UN,Planning,Advertising,4841,Press notices for planning applications 2017/18,12/04/2017,0000431317,540.00,Revenue,JOHNSTON PUBLISHING (NORTH WEST),00011345
South Ribble Council,http://statistics.data.gov.uk/doc/local-authority/30UN,Planning,Advertising,4841,Press notices for planning applications 2017/18,26/04/2017,0000431425,540.00,Revenue,JOHNSTON PUBLISHING (NORTH WEST),00011345
South Ribble Council,http://statistics.data.gov.uk/doc/local-authority/30UN,Planning,Advertising,4841,Press notices for planning applications 2017/18,28/04/2017,0000431568,513.00,Revenue,JOHNSTON PUBLISHING (NORTH WEST),00011345
South Ribble Council,http://statistics.data.gov.uk/doc/local-authority/30UN,Planning,Advertising,4841,Press notices for planning applications 2017/18,28/04/2017,0000431569,540.00,Revenue,JOHNSTON PUBLISHING (NORTH WEST),00011345
South Ribble Council,http://statistics.data.gov.uk/doc/local-authority/30UN,Planning,Advertising,4841,Press notices for planning applications 2017/18,28/04/2017,0000431570,540.00,Revenue,JOHNSTON PUBLISHING (NORTH WEST),00011345
South Ribble Council,http://statistics.data.gov.uk/doc/local-authority/30UN,Planning,Professional Fees,4510,Professional fees for services on application 07/2011/0320/OUT,26/04/2017,0000431583,650.00,Revenue,Keppie Massie,131948
South Ribble Council,http://statistics.data.gov.uk/doc/local-authority/30UN,Housing,Licence Fees,4884,Housing Price info.,26/04/2017,0000431584,"1,200.00",Revenue,Keppie Massie,131948
South Ribble Council,http://statistics.data.gov.uk/doc/local-authority/30UN,Scrutiny,Subs to Statutory Bodies,4720,LOCAL AUTHORITY CONTRIBUTION TO THE LANCASHIRE SPORT PARTNERSHIP,05/04/2017,0000431200,"1,500.00",Revenue,LANCASHIRE SPORT PARTNERSHIP LTD,00120003
South Ribble Council,http://statistics.data.gov.uk/doc/local-authority/30UN,Housing,Cap Grant- Improve Grants,C570,Supply and install Palma Visto Closmat WC at ADDRESS REDACTED quote 4027,07/04/2017,0000431275,"4,027.00",Revenue,LANCS COUNTY COUNCIL,00041645
South Ribble Council,http://statistics.data.gov.uk/doc/local-authority/30UN,Housing,Cap Grant- Improve Grants,C570,Supply and install stairlift at ADDRESS REDACTED as per your quote of 6067.00,07/04/2017,0000431282,"5,992.00",Revenue,LANCS COUNTY COUNCIL,00041645
South Ribble Council,http://statistics.data.gov.uk/doc/local-authority/30UN,Housing,Cap Grant- Improve Grants,C570,Supply and install stairlift at ADDRESS REDACTED as per your quote of 2449.00,07/04/2017,0000431283,"2,449.00",Revenue,LANCS COUNTY COUNCIL,00041645
South Ribble Council,http://statistics.data.gov.uk/doc/local-authority/30UN,Revenues Plus,Balance Sheet,0008,refund,19/04/2017,0000431326,600.00,Revenue,LANCS COUNTY COUNCIL,00041645
South Ribble Council,http://statistics.data.gov.uk/doc/local-authority/30UN,Shared Financial Services,Balance Sheet,0030,"Payment of CIL received re City Deal Sites: H31    4,003.48,H33    54,750.16",21/04/2017,0000431388,"58,753.00",Revenue,LANCS COUNTY COUNCIL,00041645
South Ribble Council,http://statistics.data.gov.uk/doc/local-authority/30UN,Legal,Other Local Authorities,4530,LAND CHARGES - MARCH 2017,21/04/2017,0000431451,"1,311.50",Revenue,LANCS COUNTY COUNCIL,00041645
South Ribble Council,http://statistics.data.gov.uk/doc/local-authority/30UN,Legal,Other Local Authorities,4530,LAND CHARGES - JANUARY 2017,21/04/2017,0000431481,"1,469.50",Revenue,LANCS COUNTY COUNCIL,00041645
South Ribble Council,http://statistics.data.gov.uk/doc/local-authority/30UN,Property Services,Professional Fees,4510,Professional Fees,19/04/2017,0000431314,600.00,Revenue,LEA HOUGH & CO,131196
South Ribble Council,http://statistics.data.gov.uk/doc/local-authority/30UN,Information Services,Publications,4142,Publications,05/04/2017,0000431153,377.00,Revenue,LEXISNEXIS BUTTERWORTHS,00037138
South Ribble Council,http://statistics.data.gov.uk/doc/local-authority/30UN,Development Enterprise & Comm Mgnt,Other Misc,4851,"Six full colour pages, to be inserted as per your instructions",21/04/2017,0000431444,480.00,Revenue,LEYLAND LEADER,00091297
South Ribble Council,http://statistics.data.gov.uk/doc/local-authority/30UN,Housing,Cap Grant- Improve Grants,C570,Additional works to  DFG work at ADDRESS REDACTED,19/04/2017,0000431391,297.64,Revenue,M J PARK,00087434
South Ribble Council,http://statistics.data.gov.uk/doc/local-authority/30UN,Housing,Cap Grant- Improve Grants,C570,DFG Works to bathroom at ADDRESS REDACTED - 50% of total cost,28/04/2017,0000431620,"1,235.00",Revenue,MAHONEY CONTRACTORS LTD,131271
South Ribble Council,http://statistics.data.gov.uk/doc/local-authority/30UN,Housing,Cap Grant- Improve Grants,C570,DFG Works to bathroom at ADDRESS REDACTED - 50% of total cost,28/04/2017,0000431621,"1,330.00",Revenue,MAHONEY CONTRACTORS LTD,131271
South Ribble Council,http://statistics.data.gov.uk/doc/local-authority/30UN,Property Services,Rep & Maint Premises,2020," 	Schedule of Works				 					 	Type of Works: Reactive Maintenance - as ",28/04/2017,0000431264,606.00,Revenue,MAINCOAT LTD,00099244
South Ribble Council,http://statistics.data.gov.uk/doc/local-authority/30UN,Property Services,Rep & Maint Premises,2020,materials,28/04/2017,0000431264,404.00,Revenue,MAINCOAT LTD,00099244
South Ribble Council,http://statistics.data.gov.uk/doc/local-authority/30UN,Property Services,Rep & Maint Premises,2020,Please attend ADDRESS REDACTED to drill out and replace 5No locks as detailed ,28/04/2017,0000431618,180.00,Revenue,MASTER LOCK & SAFE,00028749
South Ribble Council,http://statistics.data.gov.uk/doc/local-authority/30UN,Property Services,Rep & Maint Premises,2020,materials,28/04/2017,0000431618,205.65,Revenue,MASTER LOCK & SAFE,00028749
South Ribble Council,http://statistics.data.gov.uk/doc/local-authority/30UN,Area 2 - Waste Transport/Eastern & Central Teams,External Contractors Charges,4570,New key pad - PJ62UCL - JFC8147 - PD,05/04/2017,0000429582,433.18,Revenue,MITCHELL POWERSYTEMS,00077282
South Ribble Council,http://statistics.data.gov.uk/doc/local-authority/30UN,Property Services,Rep & Maint Fixed Plant,2035,Annual Contract for 2017/18 maintenance monitoring alarm ADDRESS REDACTED,21/04/2017,0000431408,540.00,Revenue,MMP FIRE AND SECURITY CENTRE,131168
South Ribble Council,http://statistics.data.gov.uk/doc/local-authority/30UN,Revenues Plus,Agency Fees,1121,Agency Staff-NAME REDACTED for Feb � March 2017,21/04/2017,0000431468,906.25,Revenue,MORGAN HUNT PUBLIC SECTOR LTD,00120401
South Ribble Council,http://statistics.data.gov.uk/doc/local-authority/30UN,Revenues Plus,Agency Fees,1121,Agency Staff - NAME REDACTED April 2017,26/04/2017,0000431523,952.75,Revenue,MORGAN HUNT PUBLIC SECTOR LTD,00120401
South Ribble Council,http://statistics.data.gov.uk/doc/local-authority/30UN,Revenues Plus,Agency Fees,1121,Agency Staff - NAME REDACTED April 2017,26/04/2017,0000431544,875.76,Revenue,MORGAN HUNT PUBLIC SECTOR LTD,00120401
South Ribble Council,http://statistics.data.gov.uk/doc/local-authority/30UN,Area 1 - Penwortham Western Parishes,Professional Fees,4521,stray dog service,07/04/2017,0000431215,316.10,Revenue,MORNINGSIDE KENNELS,00067755
South Ribble Council,http://statistics.data.gov.uk/doc/local-authority/30UN,Environmental Health,Licence Fees,488B,mgmt fee,19/04/2017,0000431235,"1,375.00",Revenue,MOSS SIDE COMMUNITY FORUM,00098724
South Ribble Council,http://statistics.data.gov.uk/doc/local-authority/30UN,HR & Communications,Advertising,4848,"ORDER OF THREE MICROSFT SURFACE PRO TABLETS, DOCKS AND CASES",12/04/2017,0000431162,"3,322.50",Revenue,MYPREMIER LTD,130091
South Ribble Council,http://statistics.data.gov.uk/doc/local-authority/30UN,HR & Communications,Advertising,4848,carriage,12/04/2017,0000431162,9.50,Revenue,MYPREMIER LTD,130091
South Ribble Council,http://statistics.data.gov.uk/doc/local-authority/30UN,Information Services,Training Expense-Course Fees,1420,"Pluralsight Annual Plus subscription, as per quote ref. 167629",07/04/2017,0000431238,300.00,Revenue,MYPREMIER LTD,130091
South Ribble Council,http://statistics.data.gov.uk/doc/local-authority/30UN,Property Services,Client Internal Charges,4590,"2016/17 - Weekly waste removal at Leyland Market, @ 79.49 plus ad hoc pick ups",12/04/2017,0000431308,401.40,Revenue,NEALES WASTE MANAGEMENT,130129
South Ribble Council,http://statistics.data.gov.uk/doc/local-authority/30UN,Scrutiny,Professional Fees,4510,Delivery of additional ESOL classes to 8 Refugees between December 2016 June 17,26/04/2017,0000431458,"6,800.00",Revenue,Nelson & Colne College,132240
South Ribble Council,http://statistics.data.gov.uk/doc/local-authority/30UN,Homelessness,Professional Fees,4529,Control centre monitoring 01/04/17-31/03/18 Homeless service,26/04/2017,0000431519,"3,874.86",Revenue,NEW PROGRESS HOUSING ASSOC ref:DNSOU001,00030135
South Ribble Council,http://statistics.data.gov.uk/doc/local-authority/30UN,Property Services,Rep & Maint Premises,2020,Annual Contract for 2016 - 2017 for the Gold Service Contract for Worden Park,05/04/2017,0000431163,450.00,Revenue,NORTH WEST MAINTENANCE SERVICES LTD,00114763
South Ribble Council,http://statistics.data.gov.uk/doc/local-authority/30UN,Regeneration,Other Misc,4851,White Goods,28/04/2017,0000431494,690.00,Revenue,NORTHWEST DOMESTIC SERVICES,130100
South Ribble Council,http://statistics.data.gov.uk/doc/local-authority/30UN,Area 1 - Penwortham Western Parishes,Professional Fees,4514,DEPLOYMENT OF OFFICERS MARCH 2017,12/04/2017,0000431225,"1,498.16",Revenue,NSL LTD,00116868
South Ribble Council,http://statistics.data.gov.uk/doc/local-authority/30UN,Area 1 - Penwortham Western Parishes,Other Misc,4855,CASH COLLECTION & RINGO TRANSACTIONS MARCH 2017,12/04/2017,0000431225,472.33,Revenue,NSL LTD,00116868
South Ribble Council,http://statistics.data.gov.uk/doc/local-authority/30UN,Information Services,Peripherals,4248,1yr maintenance for Veeam Backup & Replication.  Enterprise for VMware. 07/05/17 - ,12/04/2017,0000431321,"2,729.64",Revenue,NVIRON LTD,00028781
South Ribble Council,http://statistics.data.gov.uk/doc/local-authority/30UN,Area 3 - Parks/Leyland East West,Capital Expenditure,C230,"Reconstruction of church yard paths, St Leonards Church Walton le Dale",12/04/2017,0000431263,"18,174.00",Revenue,O`Callaghan Ltd,132068
South Ribble Council,http://statistics.data.gov.uk/doc/local-authority/30UN,Shared Assurance Services,Professional Fees,4510,Property Inspection and Support Property Resilience Grant Programme 1 residential,07/04/2017,0000431164,294.00,Revenue,Pell Frischmann,132016
South Ribble Council,http://statistics.data.gov.uk/doc/local-authority/30UN,Democratic Services,Members Expenses,4629,Please supply hotpot and butter pie to be served at 8.15pm on Tuesday 4 April at the ,07/04/2017,0000431260,272.25,Revenue,Penningtons Catering Ltd,131684
South Ribble Council,http://statistics.data.gov.uk/doc/local-authority/30UN,Environmental Health,Professional Fees,4522,gov fee,26/04/2017,0000431542,264.00,Revenue,Personnel Checks,131483
South Ribble Council,http://statistics.data.gov.uk/doc/local-authority/30UN,Environmental Health,Professional Fees,4522,admin fee,26/04/2017,0000431542,79.98,Revenue,Personnel Checks,131483
South Ribble Council,http://statistics.data.gov.uk/doc/local-authority/30UN,Information Services,Peripherals,4247,5 x BT Converse 2300 black telephones @ 56.49 each (BT 30439),26/04/2017,0000431522,282.45,Revenue,PHILLIPS BUSINESS SOLUTIONS,00032214
South Ribble Council,http://statistics.data.gov.uk/doc/local-authority/30UN,Property Services,Operational Furniture & Equip,4012,2017/ 2018 contract for the provision of sanitary services at the Civic Centre,12/04/2017,0000431318,915.03,Revenue,PHS GROUP PLC,00031309
South Ribble Council,http://statistics.data.gov.uk/doc/local-authority/30UN,Property Services,Operational Furniture & Equip,4012,"2017/ 2018 contract for the provision of sanitary services at Moss Side Depot, Bison Pl",12/04/2017,0000431320,405.60,Revenue,PHS GROUP PLC,00031309
South Ribble Council,http://statistics.data.gov.uk/doc/local-authority/30UN,Information Services,Stationery,4133,"15,000 sheets Evolution Business A4 90gm 40,000 sheet Evolution Everyday A4 80gm",12/04/2017,0000431293,297.80,Revenue,PREMIER PAPER GROUP LTD,00022606
South Ribble Council,http://statistics.data.gov.uk/doc/local-authority/30UN,Homelessness,Contributions,4730,Enhancements to abritas system SRBC contribution,12/04/2017,0000431344,"1,023.63",Revenue,PRESTON CITY COUNCIL,00031435
South Ribble Council,http://statistics.data.gov.uk/doc/local-authority/30UN,Democratic Services,Other Misc,4423,"84,000 A5 POLL CARDS",19/04/2017,0000431369,"5,486.17",Revenue,PRINT IMAGE NETWORK LTD,00089199
South Ribble Council,http://statistics.data.gov.uk/doc/local-authority/30UN,Information Services,Postage,4292, Annual Service Charge for Franking Machine 2017/18,05/04/2017,0000431195,"1,287.73",Revenue,Purchase Power,00093923
South Ribble Council,http://statistics.data.gov.uk/doc/local-authority/30UN,Information Services,Postage,4292,Franking Funds top up,26/04/2017,0000431630,"8,450.00",Revenue,Purchase Power,00093923
South Ribble Council,http://statistics.data.gov.uk/doc/local-authority/30UN,Information Services,Postage,4292,Reset fee,26/04/2017,0000431630,84.50,Revenue,Purchase Power,00093923
South Ribble Council,http://statistics.data.gov.uk/doc/local-authority/30UN,Area 3 - Parks/Leyland East West,Contract Hire & Lease Costs,3212,HIRE OF 3 TON EXCAVATOR C/W FULL SET OF BUCKETS - ON HIRE TUESDAY ,19/04/2017,0000431356,574.00,Revenue,Readyplant Limited,131535
South Ribble Council,http://statistics.data.gov.uk/doc/local-authority/30UN,Area 3 - Parks/Leyland East West,Contract Hire & Lease Costs,3212,fuel,19/04/2017,0000431356,21.60,Revenue,Readyplant Limited,131535
South Ribble Council,http://statistics.data.gov.uk/doc/local-authority/30UN,Property Services,Rep & Maint Premises,2020,Worden Park - Red Frog external cable To apply 2 coats of Thompsons water seal by,28/04/2017,0000431573,240.00,Revenue,RED ROSE BUILDING MAINTENANCE,00085410
South Ribble Council,http://statistics.data.gov.uk/doc/local-authority/30UN,Property Services,Rep & Maint Premises,2020,materials,28/04/2017,0000431573,170.00,Revenue,RED ROSE BUILDING MAINTENANCE,00085410
South Ribble Council,http://statistics.data.gov.uk/doc/local-authority/30UN,Development Enterprise & Comm Mgnt,Other Misc,485A,Rental costs for storage unit for Economic Development April to August  2017,21/04/2017,0000431276,288.86,Revenue,Red Rose Self Storage Limited,132014
South Ribble Council,http://statistics.data.gov.uk/doc/local-authority/30UN,Homelessness,Contractors Charges 5,5311,DE placement at The Courtyard wef 17.3.17 x 2 weeks to year end. Agreed price 130,26/04/2017,0000431561,260.00,Revenue,REDDY & CO,00108177
South Ribble Council,http://statistics.data.gov.uk/doc/local-authority/30UN,Democratic Services,Postage,4291,Postage,05/04/2017,0000431122,897.70,Revenue,ROYAL MAIL GROUP PLC,00033543
South Ribble Council,http://statistics.data.gov.uk/doc/local-authority/30UN,Information Services,Postage,4295,Postage,26/04/2017,0000431585,320.05,Revenue,ROYAL MAIL GROUP PLC,00033543
South Ribble Council,http://statistics.data.gov.uk/doc/local-authority/30UN,Area 2 - Waste Transport/Eastern & Central Teams,External Contractors Charges,4570,SPEC REPAIR - ML07LCM - JFC8374 - PD,12/04/2017,0000431253,856.00,Revenue,S.J. & C.W. WILKINSONS LTD,131536
South Ribble Council,http://statistics.data.gov.uk/doc/local-authority/30UN,Property Services,Energy Costs,2304,21/12/16 to 28/3/17,07/04/2017,0000431208,312.67,Revenue,SCOTTISH HYDRO ELECTRIC,130051
South Ribble Council,http://statistics.data.gov.uk/doc/local-authority/30UN,Property Services,Energy Costs,2303,2/1/17 to 1/4/17,26/04/2017,0000431498,420.38,Revenue,SCOTTISH HYDRO ELECTRIC,130051
South Ribble Council,http://statistics.data.gov.uk/doc/local-authority/30UN,Property Services,Energy Costs,2307,ccl,26/04/2017,0000431498,19.93,Revenue,SCOTTISH HYDRO ELECTRIC,130051
South Ribble Council,http://statistics.data.gov.uk/doc/local-authority/30UN,Property Services,Energy Costs,2303,1/3/17 to 31/3/17,26/04/2017,0000431506,402.71,Revenue,SCOTTISH HYDRO ELECTRIC,130051
South Ribble Council,http://statistics.data.gov.uk/doc/local-authority/30UN,Property Services,Energy Costs,2307,ccl,26/04/2017,0000431506,19.67,Revenue,SCOTTISH HYDRO ELECTRIC,130051
South Ribble Council,http://statistics.data.gov.uk/doc/local-authority/30UN,Property Services,Energy Costs,2303,1/3/17 to 31/3/17,26/04/2017,0000431507,"2,843.35",Revenue,SCOTTISH HYDRO ELECTRIC,130051
South Ribble Council,http://statistics.data.gov.uk/doc/local-authority/30UN,Property Services,Energy Costs,2307,ccl,26/04/2017,0000431507,148.28,Revenue,SCOTTISH HYDRO ELECTRIC,130051
South Ribble Council,http://statistics.data.gov.uk/doc/local-authority/30UN,Property Services,Energy Costs,2303,2/1/17 to 1/4/17,26/04/2017,0000431509,336.77,Revenue,SCOTTISH HYDRO ELECTRIC,130051
South Ribble Council,http://statistics.data.gov.uk/doc/local-authority/30UN,Property Services,Energy Costs,2303,12/1/17 to 11/4/17,26/04/2017,0000431513,331.40,Revenue,SCOTTISH HYDRO ELECTRIC,130051
South Ribble Council,http://statistics.data.gov.uk/doc/local-authority/30UN,Property Services,Energy Costs,2303,1/3/17 to 31/3/17,26/04/2017,0000431514,"2,016.55",Revenue,SCOTTISH HYDRO ELECTRIC,130051
South Ribble Council,http://statistics.data.gov.uk/doc/local-authority/30UN,Property Services,Energy Costs,2307,ccl,26/04/2017,0000431514,109.31,Revenue,SCOTTISH HYDRO ELECTRIC,130051
South Ribble Council,http://statistics.data.gov.uk/doc/local-authority/30UN,Property Services,Energy Costs,2303,1/3/17 to 31/3/17,26/04/2017,0000431515,"1,012.33",Revenue,SCOTTISH HYDRO ELECTRIC,130051
South Ribble Council,http://statistics.data.gov.uk/doc/local-authority/30UN,Property Services,Energy Costs,2307,CCl,26/04/2017,0000431515,51.11,Revenue,SCOTTISH HYDRO ELECTRIC,130051
South Ribble Council,http://statistics.data.gov.uk/doc/local-authority/30UN,Area 3 - Parks/Leyland East West,Grounds Maint Cntrctrs Chgs,4657,BELLE GROUP PLCLX320 WACKER PLATE 10509289,28/04/2017,0000431530,365.00,Revenue,SIG FIXINGS,130798
South Ribble Council,http://statistics.data.gov.uk/doc/local-authority/30UN,Area 3 - Parks/Leyland East West,Grounds Maint Cntrctrs Chgs,4657,BELLE GROUP PLCLX320 WACKER PLATE 10509289,28/04/2017,0000431530,365.00,Revenue,SIG FIXINGS,130798
South Ribble Council,http://statistics.data.gov.uk/doc/local-authority/30UN,HR & Communications,Training Expense-Course Fees,1408,PILATES CLASS HELD AT SRBC AT LUNCH (EVERY WEDS) COVERING PERIOD,12/04/2017,0000431300,690.00,Revenue,NAME REDACTED,132170
South Ribble Council,http://statistics.data.gov.uk/doc/local-authority/30UN,Neighbourhood Admin & Support,Clothing- Uniforms & Laundry,4410,ORN VULTURE BALLISTIC TROUSER IN NAVY SIZE 32R (SRBC48),26/04/2017,0000431492,261.60,Revenue,SMART IMAGE WORKWEAR,00031503
South Ribble Council,http://statistics.data.gov.uk/doc/local-authority/30UN,Neighbourhood Admin & Support,Clothing- Uniforms & Laundry,4410,ORN VULTURE BALLISTIC TROUSERS IN NAVY SIZE 36R (SRBC 48),26/04/2017,0000431492,261.60,Revenue,SMART IMAGE WORKWEAR,00031503
South Ribble Council,http://statistics.data.gov.uk/doc/local-authority/30UN,Neighbourhood Admin & Support,Clothing- Uniforms & Laundry,4410,BALLISTIC TROUSERS - NAVY ORN VULTURE  32`` - SRBC48,26/04/2017,0000431521,130.80,Revenue,SMART IMAGE WORKWEAR,00031503
South Ribble Council,http://statistics.data.gov.uk/doc/local-authority/30UN,Neighbourhood Admin & Support,Clothing- Uniforms & Laundry,4410,BALLISTIC TROUSERS - NAVY ORN VULTURE 34`` - SRBC48,26/04/2017,0000431521,130.80,Revenue,SMART IMAGE WORKWEAR,00031503
South Ribble Council,http://statistics.data.gov.uk/doc/local-authority/30UN,Neighbourhood Admin & Support,Clothing- Uniforms & Laundry,4410,BALLISTIC TROUSERS - NAVY ORN VULTURE 36`` - SRBC48,26/04/2017,0000431521,130.80,Revenue,SMART IMAGE WORKWEAR,00031503
South Ribble Council,http://statistics.data.gov.uk/doc/local-authority/30UN,Neighbourhood Admin & Support,Clothing- Uniforms & Laundry,4410,HI VIZ  VULTURE BALLISTIC TROUSERS (34)     YELLOW - REGULAR,28/04/2017,0000431647,51.90,Revenue,SMART IMAGE WORKWEAR,00031503
South Ribble Council,http://statistics.data.gov.uk/doc/local-authority/30UN,Neighbourhood Admin & Support,Clothing- Uniforms & Laundry,4410,HI VIZ  VULTURE BALLISTIC TROUSERS (36)     YELLOW - REGULAR,28/04/2017,0000431647,25.95,Revenue,SMART IMAGE WORKWEAR,00031503
South Ribble Council,http://statistics.data.gov.uk/doc/local-authority/30UN,Neighbourhood Admin & Support,Clothing- Uniforms & Laundry,4410,BALLISTIC TROUSERS - NAVY ORN VULTURE  32`` - (SHORT LEG),28/04/2017,0000431647,43.60,Revenue,SMART IMAGE WORKWEAR,00031503
South Ribble Council,http://statistics.data.gov.uk/doc/local-authority/30UN,Neighbourhood Admin & Support,Clothing- Uniforms & Laundry,4410,BALLISTIC TROUSERS - NAVY ORN VULTURE 34`` - (SHORT LEG),28/04/2017,0000431647,65.40,Revenue,SMART IMAGE WORKWEAR,00031503
South Ribble Council,http://statistics.data.gov.uk/doc/local-authority/30UN,Neighbourhood Admin & Support,Clothing- Uniforms & Laundry,4410,BALLISTIC TROUSERS - NAVY ORN VULTURE 36`` - (SHORT LEG),28/04/2017,0000431647,65.40,Revenue,SMART IMAGE WORKWEAR,00031503
South Ribble Council,http://statistics.data.gov.uk/doc/local-authority/30UN,Environmental Health,Training Expense-Course Fees,1400,Course on Monday 9th - Wednesday 11th November at South Ribble Tennis an,26/04/2017,0000431473,260.00,Revenue,SOUTH RIBBLE COMMUNITY LEISURE LTD,00094210
South Ribble Council,http://statistics.data.gov.uk/doc/local-authority/30UN,Neighbourhood Admin & Support,Operational Furniture & Equip,4010,LITTER PICKER 27242,05/04/2017,0000431140,255.00,Revenue,SPALDINGS,00070849
South Ribble Council,http://statistics.data.gov.uk/doc/local-authority/30UN,Neighbourhood Admin & Support,Operational Furniture & Equip,4010,Litter Picker 27242 (March Promotion Price ),07/04/2017,0000431199,637.50,Revenue,SPALDINGS,00070849
South Ribble Council,http://statistics.data.gov.uk/doc/local-authority/30UN,Development Enterprise & Comm Mgnt,Other Misc,4851,"Consultancy time: February 2017  16 hours @ 40 per hour - 640 March 2017 ",21/04/2017,0000431392,640.00,Revenue,STONE CREATE LTD,130896
South Ribble Council,http://statistics.data.gov.uk/doc/local-authority/30UN,Development Enterprise & Comm Mgnt,Other Misc,4851,Consultancy time: February 2017  16 hours @ 40 per hour - 640 March 2017 ,21/04/2017,0000431393,750.00,Revenue,STONE CREATE LTD,130896
South Ribble Council,http://statistics.data.gov.uk/doc/local-authority/30UN,Development Enterprise & Comm Mgnt,Other Misc,4851,"Truck Trail Website Design, development and build @ 4975",28/04/2017,0000431555,"4,975.00",Revenue,STONE CREATE LTD,130896
South Ribble Council,http://statistics.data.gov.uk/doc/local-authority/30UN,Property Services,Rep & Maint Fixed Plant,2035,Annual Contract for 2017/2018 call out charges for Longton Brickcroft and Maintenance,19/04/2017,0000430496,600.00,Revenue,SWIFT FIRE & SECURITY,00041933
South Ribble Council,http://statistics.data.gov.uk/doc/local-authority/30UN,Neighbourhood Admin & Support,Materials General,4040,LEMON FLOOR GEL -,19/04/2017,0000431363,51.60,Revenue,SWIFT KLEEN,00119360
South Ribble Council,http://statistics.data.gov.uk/doc/local-authority/30UN,Neighbourhood Admin & Support,Clothing- Uniforms & Laundry,4410,DISPOSABLE GLOVES NITRILE (BOX- 100) size medium - NITPF + MEDIUM,19/04/2017,0000431363,88.50,Revenue,SWIFT KLEEN,00119360
South Ribble Council,http://statistics.data.gov.uk/doc/local-authority/30UN,Neighbourhood Admin & Support,Clothing- Uniforms & Laundry,4410,DISPOSABLE GLOVES NITRILE (BOX- 100) X large - NITPF + XLARGE,19/04/2017,0000431363,88.50,Revenue,SWIFT KLEEN,00119360
South Ribble Council,http://statistics.data.gov.uk/doc/local-authority/30UN,Neighbourhood Admin & Support,Materials General,4040,TOILET TISSUE (WORDEN PARK TOILETS) - 2522BP,19/04/2017,0000431363,101.00,Revenue,SWIFT KLEEN,00119360
South Ribble Council,http://statistics.data.gov.uk/doc/local-authority/30UN,Neighbourhood Admin & Support,Materials General,4040,ATLAS PINE DISINFECTANT  5 LTR - WPD,19/04/2017,0000431363,11.00,Revenue,SWIFT KLEEN,00119360
South Ribble Council,http://statistics.data.gov.uk/doc/local-authority/30UN,Neighbourhood Admin & Support,Materials General,4040, PROTECT CONCENTRATED CLEANER DISINFECTANT  -,19/04/2017,0000431363,54.60,Revenue,SWIFT KLEEN,00119360
South Ribble Council,http://statistics.data.gov.uk/doc/local-authority/30UN,Neighbourhood Admin & Support,Materials General,4040,S-FOLD HAND TOWEL BLUE 1 ply - 5000B,19/04/2017,0000431363,62.00,Revenue,SWIFT KLEEN,00119360
South Ribble Council,http://statistics.data.gov.uk/doc/local-authority/30UN,Area 2 - Waste Transport/Eastern & Central Teams,Cap Vehicles,C451,floor painting,21/04/2017,0000431436,"1,464.00",Revenue,Tecalemit Garage Equipment Company Limited,132135
South Ribble Council,http://statistics.data.gov.uk/doc/local-authority/30UN,Area 2 - Waste Transport/Eastern & Central Teams,Materials General,4040,Trim panel and light bracket - VO65KRE - JFC8531 - PD,26/04/2017,0000431531,320.27,Revenue,TERBERG MATEC UK LTD,00058625
South Ribble Council,http://statistics.data.gov.uk/doc/local-authority/30UN,Area 2 - Waste Transport/Eastern & Central Teams,Materials General,4040,"2 SWITCHES - BIN 369, 2 SWITCHES - BIN 372, 1 SWITCH - BIN 376 - GA",28/04/2017,0000431599,"1,040.58",Revenue,TERBERG MATEC UK LTD,00058625
South Ribble Council,http://statistics.data.gov.uk/doc/local-authority/30UN,Property Services,Rep & Maint Premises,2020,"2016/17 service contract for the caf� door 1,caf� door 2, car park entrance left & right",05/04/2017,0000431168,260.00,Revenue,THE AUTOMATIC DOOR COMPANY LTD,00108533
South Ribble Council,http://statistics.data.gov.uk/doc/local-authority/30UN,Property Services,Rep & Maint Premises,2020,"2016/17 annual service contract for the outer, middle & inner bi-part slider, double power",07/04/2017,0000431221,350.00,Revenue,THE AUTOMATIC DOOR COMPANY LTD,00108533
South Ribble Council,http://statistics.data.gov.uk/doc/local-authority/30UN,Legal,Publications,4142,aldridge R51,19/04/2017,0000431335,495.00,Revenue,THOMSON REUTERS,00034979
South Ribble Council,http://statistics.data.gov.uk/doc/local-authority/30UN,Property Services,Energy Costs,2303,sept - oct,26/04/2017,0000329297,487.97,Revenue,TOTAL GAS & POWER,130141
South Ribble Council,http://statistics.data.gov.uk/doc/local-authority/30UN,Property Services,Energy Costs,2303,dec - jan,26/04/2017,0000329298,681.01,Revenue,TOTAL GAS & POWER,130141
South Ribble Council,http://statistics.data.gov.uk/doc/local-authority/30UN,Property Services,Energy Costs,2303,OCT,26/04/2017,0000329300,335.96,Revenue,TOTAL GAS & POWER,130141
South Ribble Council,http://statistics.data.gov.uk/doc/local-authority/30UN,Property Services,Energy Costs,2303,june - sept,26/04/2017,0000329302,747.35,Revenue,TOTAL GAS & POWER,130141
South Ribble Council,http://statistics.data.gov.uk/doc/local-authority/30UN,Property Services,Energy Costs,2303,NOV - DEC,26/04/2017,0000329320,682.24,Revenue,TOTAL GAS & POWER,130141
South Ribble Council,http://statistics.data.gov.uk/doc/local-authority/30UN,Area 3 - Parks/Leyland East West,Operational Furniture & Equip,4010,1 x Air spade 2000 Arborist kit with 150cfm nozzle.,28/04/2017,0000431659,"1,580.00",Revenue,Tutex Ltd,132244
South Ribble Council,http://statistics.data.gov.uk/doc/local-authority/30UN,Property Services,Operational Furniture & Equip,4012,Annual contract for the monthly  rental of  equipment  and environmental charges ,12/04/2017,0000431196,322.09,Revenue,VENDING ENTERPRISES,00101501
South Ribble Council,http://statistics.data.gov.uk/doc/local-authority/30UN,Property Services,Operational Furniture & Equip,4010,3 x  Realspace Pro 1950 Hmm x 950 W x 450 Dmm Grey - steel 2 door cupboards ,28/04/2017,0000431669,597.00,Revenue,VIKING DIRECT LTD,00038331
South Ribble Council,http://statistics.data.gov.uk/doc/local-authority/30UN,Information Services,Processing-Internal,4212,Information Services,07/04/2017,0000431261,"2,576.55",Revenue,VODAFONE RE:CABLE & WIRELESS UK,130810
South Ribble Council,http://statistics.data.gov.uk/doc/local-authority/30UN,Information Services,Peripherals,4247,"Moss Side link, internet & router for period 01/04/17 - 30/04/17",07/04/2017,0000431274,"1,312.66",Revenue,VODAFONE RE:CABLE & WIRELESS UK,130810
South Ribble Council,http://statistics.data.gov.uk/doc/local-authority/30UN,Property Services,Water Charges,2511,14/11/16 to 13/2/17,05/04/2017,0000431126,"3,190.12",Revenue,WATER PLUS,00029845
South Ribble Council,http://statistics.data.gov.uk/doc/local-authority/30UN,Property Services,Water Charges,2511,1/4/17 to 31/3/18,28/04/2017,0000431478,"1,702.72",Revenue,WATER PLUS,00029845
South Ribble Council,http://statistics.data.gov.uk/doc/local-authority/30UN,Legal,Agency Fees,1121,Weightmans Solicitors (NAME REDACTED) to carry out investigation into the leaked,07/04/2017,0000431226,945.00,Revenue,WEIGHTMANS LLP,00120867
South Ribble Council,http://statistics.data.gov.uk/doc/local-authority/30UN,HR & Communications,Consultancy Fees,4541,INVESTIGATION WORK COVERING THE PERIOD UNTIL THE 31ST MARCH 2017,12/04/2017,0000431296,526.50,Revenue,WEIGHTMANS LLP,00120867
South Ribble Council,http://statistics.data.gov.uk/doc/local-authority/30UN,Revenues Plus,Postage,4291,Revenues Stationery March 2017,07/04/2017,0000431145,268.25,Revenue,WHISTL  UK LTD,131310
South Ribble Council,http://statistics.data.gov.uk/doc/local-authority/30UN,HR & Communications,Consultancy Fees,4541,legal advice,26/04/2017,0000431525,"4,106.00",Revenue,WILKIN CHAPMAN LLP,131825
South Ribble Council,http://statistics.data.gov.uk/doc/local-authority/30UN,Environmental Health,External Contractors Charges,4570,Door as per Quotation for ADDRESS REDACTED,19/04/2017,0000431237,"1,785.80",Revenue,WILLIAM M SNAPE MANUFACTURING SERVICES UK LTD,132034
South Ribble Council,http://statistics.data.gov.uk/doc/local-authority/30UN,Environmental Health,External Contractors Charges,4570,Door as per Quotation for ADDRESS REDACTED,19/04/2017,0000431377,"1,830.80",Revenue,WILLIAM M SNAPE MANUFACTURING SERVICES UK LTD,132034
South Ribble Council,http://statistics.data.gov.uk/doc/local-authority/30UN,Regeneration,Capital Expenditure,C234,Benches for Bamber Bridge,19/04/2017,0000431166,"5,227.00",Revenue,WOODCSCAPE LIMITED,00113942
South Ribble Council,http://statistics.data.gov.uk/doc/local-authority/30UN,Property Services,Rep & Maint Premises,2020,Civic Centre - North Wing (all floors with focus on 2nd Floor ladies toilet)  To attend,21/04/2017,0000431398,312.00,Revenue,Wright Build Limited,131203
